bitfinex-derivatives/quotes_BNBF0:USTF0_20250907
["timestamp","ask_amount","ask_price","bid_price","bid_amount"]
[1757255994612,0.84461384,871.74,870.52,0.413]
[1757255995313,1.5303352,871.89,870.52,0.413]
[1757255995517,1.5303352,871.9,870.52,0.413]
[1757255995717,1.5303352,871.89,870.52,0.413]
[1757255996013,1.5303352,871.82,870.52,0.413]
[1757255997318,1.5303352,871.81,870.52,0.413]
[1757255998915,1.5303352,871.87,870.52,0.413]
[1757255999919,1.5303352,871.86,870.52,0.413]
[1757256000316,1.5303352,871.84,870.52,0.413]
[1757256001321,1.5303352,871.82,870.52,0.413]
[1757256002120,1.5303352,871.81,870.52,0.413]
[1757256002317,1.5303352,871.79,870.52,0.413]
[1757256002621,1.27291203,871.85,870.52,0.413]
[1757256003418,2.5709662,872.59,870.52,0.413]
[1757256003623,2.5709662,872.56,870.52,0.413]
[1757256004827,3.5904222,872.93,870.52,0.413]
[1757256005020,2.5709662,873.04,870.52,0.413]
[1757256005222,2.5709662,873.05,870.52,0.413]
[1757256006326,2.5709662,873.04,870.52,0.413]
[1757256006728,2.5709662,873.12,870.52,0.413]
[1757256007923,2.5709662,873.13,870.52,0.413]
[1757256008825,2.5709662,873.1,870.52,0.413]
[1757256010525,2.5709662,873.1,870.53,0.431]
[1757256010828,2.5709662,873.1,870.53,0.83]
[1757256012630,2.5709662,873.09,870.53,0.83]
[1757256013036,2.5709662,873.08,870.53,0.83]
[1757256014633,2.5709662,872.74,870.53,0.83]
[1757256016136,2.5749662,872.69,870.53,0.83]
[1757256016637,2.5709662,872.42,870.53,0.83]
[1757256017231,2.5709662,872.47,870.53,0.83]
[1757256019134,2.5709662,872.51,870.53,0.83]
[1757256019737,2.5709662,872.52,870.53,0.83]
[1757256020435,2.5709662,872.51,870.53,0.83]
[1757256020834,0.004,872.69,870.53,0.83]
[1757256021437,2.5709662,872.6,870.53,0.83]
[1757256022437,2.5709662,872.66,870.53,0.83]
[1757256022637,1.5408093,871.84,870.53,0.83]
[1757256024633,1.0272205,871.63,870.53,0.83]
[1757256024837,0.85695219,871.63,870.53,0.83]
[1757256025537,1.5408093,871.84,870.53,0.83]
[1757256026639,1.5408093,871.83,870.53,0.83]
[1757256026833,1.5408093,871.82,870.53,0.83]
[1757256028640,1.5408093,871.86,870.65,1.0259593]
[1757256028836,1.5408093,871.84,870.69,1.0259593]
[1757256029037,1.5408093,871.83,870.69,1.0259593]
[1757256029241,1.5408093,871.83,870.7,1.0259593]
[1757256029438,1.5408093,871.83,870.69,1.0259593]
[1757256029637,1.5408093,871.84,870.69,1.0259593]
[1757256029837,1.5408093,871.83,870.7,1.0259593]
[1757256030137,1.5408093,871.84,870.69,1.0259593]
[1757256031038,1.5408093,871.85,870.69,1.0259593]
[1757256031239,1.5408093,871.84,870.69,1.0259593]
[1757256031443,1.5408093,871.85,870.69,1.0259593]
[1757256032141,1.5408093,871.86,870.7,1.0259593]
[1757256032444,1.5408093,871.86,870.69,1.0259593]
[1757256032744,1.29139519,871.88,870.68,1.0259593]
[1757256032942,0.004,872.5,870.69,1.0259593]
[1757256033141,0.004,872.5,870.68,1.0259593]
[1757256035048,0.004,872.5,870.69,0.488]
[1757256035543,0.004,872.5,870.7,0.59]
[1757256036048,0.004,872.5,870.78,1.0259593]
[1757256036945,0.004,872.5,870.77,1.0259593]
[1757256037849,0.004,872.5,870.78,1.0259593]
[1757256039955,0.004,872.5,870.79,1.0259593]
[1757256040253,0.004,872.5,870.78,1.0259593]
[1757256041954,0.004,872.5,870.79,1.0259593]
[1757256042651,0.004,872.5,870.8,1.0259593]
[1757256043250,0.004,872.5,870.81,1.0259593]
[1757256043554,0.004,872.5,870.7,0.59]
[1757256043555,0.004,872.5,870.8,1.0259593]
[1757256046054,0.004,872.5,870.71,1.0259593]
[1757256046755,2.5709662,872.48,870.72,1.0259593]
[1757256047356,2.5749662,872.5,870.71,1.0259593]
[1757256048359,2.5709662,872.49,870.71,1.0259593]
[1757256049859,2.5709662,872.49,870.72,0.597]
[1757256050957,0.004,872.5,870.72,0.597]
[1757256052759,1.539159,871.92,870.72,0.597]
[1757256052959,1.29994652,871.92,870.72,0.597]
[1757256054762,1.02605594,871.76,870.72,0.597]
[1757256055659,1.02605594,871.75,870.72,0.597]
[1757256056058,1.02605594,871.76,870.72,0.597]
[1757256056657,1.02605594,871.75,870.72,0.597]
[1757256058759,1.02605594,871.76,870.72,0.597]
[1757256059361,1.02605594,871.81,870.72,0.597]
[1757256060664,1.02605594,871.79,870.72,0.597]
[1757256060861,0.87194544,871.79,870.72,0.597]
[1757256061666,0.004,872.5,870.72,0.597]
[1757256062267,0.004,872.5,870.73,0.539]
[1757256073073,1.5395592,872.1,870.73,0.539]
[1757256074677,1.5395592,872.01,870.73,0.539]
[1757256074875,1.31355303,872.0,870.73,0.539]
[1757256075075,0.004,872.5,870.73,0.539]
[1757256075572,0.004,872.5,870.74,0.513]
[1757256075977,0.004,872.5,870.77,1.0259593]
[1757256076378,0.004,872.5,870.78,1.0259593]
[1757256078375,0.004,872.5,870.79,1.0259593]
[1757256079080,0.004,872.5,870.78,1.0259593]
[1757256079279,0.004,872.5,870.79,1.0259593]
[1757256079680,0.004,872.5,870.78,1.0259593]
[1757256079981,0.004,872.5,870.76,1.0259593]
[1757256081078,0.004,872.5,870.77,1.0259593]
[1757256081478,0.004,872.5,870.78,1.0259593]
[1757256082582,0.004,872.5,870.77,1.0259593]
[1757256084484,0.004,872.5,870.78,1.0259593]
[1757256085385,0.004,872.5,870.79,1.0259593]
[1757256085982,0.004,872.5,870.74,0.513]
[1757256086589,0.004,872.5,870.73,0.539]
[1757256087387,0.004,872.5,870.73,1.5649593]
[1757256088391,0.004,872.5,870.75,1.0259593]
[1757256088788,0.004,872.5,870.76,1.0259593]
[1757256089490,0.004,872.5,870.77,0.409]
[1757256089787,0.004,872.5,870.78,1.0259593]
[1757256090693,0.004,872.5,870.77,1.4349593]
[1757256090891,1.0287056,871.78,870.77,1.4349593]
[1757256091191,1.0287056,871.78,870.78,1.0259593]
[1757256091890,1.0287056,871.78,870.77,1.4349593]
[1757256092093,1.0287056,871.78,870.79,1.0259593]
[1757256093595,1.0287056,871.78,870.81,1.0259593]
[1757256094790,0.004,872.5,870.77,0.409]
[1757256094791,1.0287056,871.81,870.8,1.0259593]
[1757256095995,1.0287056,871.82,870.81,1.4179593]
[1757256096894,0.004,872.5,870.81,1.4179593]
[1757256096895,1.0287056,871.81,870.82,1.0259593]
[1757256097994,1.0287056,871.8,870.81,1.4179593]
[1757256098191,1.0287056,871.81,870.81,1.4179593]
[1757256098494,1.0287056,871.8,870.81,1.4179593]
[1757256099696,1.0287056,871.81,870.81,1.4179593]
[1757256100494,1.0287056,871.8,870.81,1.4179593]
[1757256102300,1.0287056,871.8,870.82,1.0259593]
[1757256103500,1.0287056,871.82,870.81,0.392]
[1757256103895,1.0287056,871.82,870.82,0.5]
[1757256104598,1.0287056,871.8,870.82,1.5259593]
[1757256106002,1.0287056,871.8,870.84,1.0259593]
[1757256106901,1.0287056,871.8,870.82,1.5259593]
[1757256107101,1.0287056,871.82,870.82,0.5]
[1757256108097,1.0287056,871.81,870.82,0.5]
[1757256108702,1.0287056,871.82,870.82,0.5]
[1757256109804,1.0287056,872.18,870.82,0.5]
[1757256110002,1.0287056,872.12,870.82,0.5]
[1757256110298,1.0287056,872.1,870.82,0.5]
[1757256111001,1.0287056,872.09,870.82,0.5]
[1757256112105,1.0287056,872.1,870.82,0.5]
[1757256112404,1.0287056,872.09,870.82,0.5]
[1757256114105,1.0287056,872.1,870.82,0.5]
[1757256115006,1.0287056,871.91,870.82,0.5]
[1757256116209,1.0287056,871.9,870.82,0.5]
[1757256116709,1.0287056,871.89,870.82,0.5]
[1757256117006,1.0287056,871.74,870.82,0.5]
[1757256117406,1.0287056,871.77,870.82,0.5]
[1757256118706,1.0287056,871.76,870.82,0.5]
[1757256119807,1.0287056,871.74,870.82,0.5]
[1757256120006,1.0287056,871.73,870.82,0.5]
[1757256120205,1.0287056,871.71,870.82,0.5]
[1757256126020,1.0287056,871.79,870.82,0.5]
[1757256126816,1.0287056,871.78,870.82,0.5]
[1757256127416,1.0287056,871.73,870.82,0.5]
[1757256127617,1.0287056,871.74,870.82,0.5]
[1757256127817,1.0287056,871.68,870.82,0.5]
[1757256128320,1.0287056,871.69,870.82,0.5]
[1757256128921,1.0287056,871.69,870.83,0.605]
[1757256129722,1.0287056,871.71,870.83,0.605]
[1757256130719,1.0287056,871.71,870.84,0.402]
[1757256131023,1.0287056,871.7,870.84,0.402]
[1757256131222,1.0287056,871.71,870.84,0.402]
[1757256132426,1.0287056,871.79,870.84,0.402]
[1757256136128,1.0287056,871.72,870.84,0.402]
[1757256137126,1.0287056,871.71,870.84,0.402]
[1757256137428,1.0287056,871.72,870.84,0.402]
[1757256137626,1.0287056,871.7,870.84,0.402]
[1757256138824,1.0287056,871.71,870.84,0.402]
[1757256141032,1.0287056,871.7,870.84,0.402]
[1757256141232,1.0287056,871.63,870.84,0.402]
[1757256141730,1.0287056,871.66,870.84,0.402]
[1757256142329,1.0287056,871.75,870.84,0.402]
[1757256146135,1.0287056,871.76,870.84,0.402]
[1757256148637,1.0287056,871.75,870.84,0.402]
[1757256149434,0.004,872.5,870.84,0.402]
[1757256149435,1.0287056,871.76,870.84,0.402]
[1757256151645,1.0287056,871.75,870.84,0.402]
[1757256152343,1.0287056,871.67,870.84,0.402]
[1757256154045,1.0287056,871.68,870.84,0.402]
[1757256154346,1.0287056,871.69,870.84,0.402]
[1757256154544,1.0287056,871.71,870.84,0.402]
[1757256154846,1.0287056,871.71,870.85,0.45]
[1757256155145,1.0287056,871.72,870.85,0.45]
[1757256155446,1.0287056,871.71,870.85,0.45]
[1757256156245,1.0287056,871.7,870.85,0.45]
[1757256158646,1.0287056,871.69,870.85,0.45]
[1757256160547,1.0287056,871.69,870.86,0.572]
[1757256160948,1.0287056,871.68,870.86,0.572]
[1757256162345,1.0287056,871.78,870.86,0.572]
[1757256162645,1.0287056,871.75,870.86,0.572]
[1757256163246,1.0287056,871.74,870.86,0.572]
[1757256165252,1.0287056,871.73,870.86,0.572]
[1757256166056,1.0287056,871.8,870.86,0.572]
[1757256167856,1.0287056,871.79,870.86,0.572]
[1757256168261,1.0287056,871.78,870.86,0.572]
[1757256169160,1.0287056,871.77,870.86,0.572]
[1757256169457,1.0287056,871.77,870.87,0.513]
[1757256169763,1.0287056,871.78,870.87,0.513]
[1757256170263,1.0287056,871.77,870.87,0.513]
[1757256171564,1.0287056,871.79,870.87,0.513]
[1757256172266,1.0287056,871.7,870.87,0.513]
[1757256174266,1.0287056,871.7,870.88,0.461]
[1757256176267,1.0287056,871.64,870.88,0.461]
[1757256177368,1.0287056,871.67,870.88,0.461]
[1757256177664,1.0287056,871.7,870.88,0.461]
[1757256177863,1.0287056,871.75,870.88,0.461]
[1757256179367,1.0287056,871.74,870.88,0.461]
[1757256181273,1.0287056,871.73,870.88,0.461]
[1757256182279,1.0287056,871.66,870.88,0.461]
[1757256183273,1.0287056,871.67,870.88,0.461]
[1757256183575,1.0287056,871.66,870.88,0.461]
[1757256184176,1.0287056,871.67,870.88,0.461]
[1757256186575,1.0287056,871.66,870.88,0.461]
[1757256186877,1.0287056,871.61,870.88,0.461]
[1757256187073,1.0287056,871.58,870.88,0.461]
[1757256187277,1.0287056,871.56,870.88,0.461]
[1757256187674,1.0287056,871.52,870.88,0.461]
[1757256188074,1.0287056,871.5,870.88,0.461]
[1757256191480,1.0287056,871.58,870.88,0.461]
[1757256191982,1.0287056,871.57,870.88,0.461]
[1757256192386,1.0287056,871.6,870.88,0.461]
[1757256193186,1.0287056,871.61,870.88,0.461]
[1757256193386,1.0287056,871.62,870.88,0.461]
[1757256195287,0.004,872.5,870.88,0.461]
[1757256195288,1.0287056,871.63,870.88,0.461]
[1757256196286,1.0287056,871.64,870.88,0.461]
[1757256197186,1.0287056,871.65,870.88,0.461]
[1757256199188,1.0287056,871.66,870.88,0.461]
[1757256200088,1.0287056,871.61,870.88,0.461]
[1757256200289,1.0287056,871.62,870.88,0.461]
[1757256201292,1.0287056,871.52,870.88,0.461]
[1757256202190,1.0287056,871.46,870.88,0.461]
[1757256202788,1.0287056,871.45,870.88,0.461]
[1757256204588,1.0287056,871.44,870.88,0.461]
[1757256205192,1.0287056,871.45,870.88,0.461]
[1757256205390,1.0287056,871.46,870.88,0.461]
[1757256205588,1.0287056,871.44,870.88,0.461]
[1757256206295,1.0287056,871.42,870.88,0.461]
[1757256206895,1.0287056,871.41,870.88,0.461]
[1757256207397,1.0287056,871.55,870.88,0.461]
[1757256207596,1.0287056,871.62,870.88,0.461]
[1757256211904,1.0287056,871.65,870.88,0.461]
[1757256212200,1.0287056,871.64,870.88,0.461]
[1757256213008,1.0287056,871.64,870.89,0.504]
[1757256213704,1.0287056,871.52,870.89,0.504]
[1757256213903,1.0287056,871.51,870.89,0.504]
[1757256215004,1.0287056,871.51,870.9,0.505]
[1757256216212,1.0287056,871.58,870.9,0.505]
[1757256216612,1.0287056,871.59,870.9,0.505]
[1757256217308,1.0287056,871.59,870.91,0.458]
[1757256218414,1.0287056,871.58,870.91,0.458]
[1757256218916,1.0287056,871.59,870.91,0.458]
[1757256221513,1.5430149,871.77,870.91,0.458]
[1757256221514,1.0287056,871.58,870.91,0.458]
[1757256221719,1.0287056,871.61,870.91,0.458]
[1757256222014,1.0287056,871.58,870.91,0.458]
[1757256222318,1.0287056,871.57,870.91,0.458]
[1757256223713,1.0287056,871.6,870.91,0.458]
[1757256224619,1.0287056,871.59,870.91,0.458]
[1757256226214,1.0287056,871.52,870.91,0.458]
[1757256227320,1.0287056,871.51,870.91,0.458]
[1757256227521,1.0287056,871.5,870.91,0.458]
[1757256229219,1.0287056,871.49,870.91,0.458]
[1757256229417,1.0287056,871.48,870.91,0.458]
[1757256231522,1.0287056,871.44,870.91,0.458]
[1757256231720,1.0287056,871.46,870.91,0.458]
[1757256232124,1.0287056,871.53,870.91,0.458]
[1757256233424,1.0287056,871.52,870.91,0.458]
[1757256233625,1.5430149,871.72,870.91,0.458]
[1757256233626,1.0287056,871.49,870.91,0.458]
[1757256235324,1.0287056,871.48,870.91,0.458]
[1757256236124,1.0287056,871.49,870.91,0.458]
[1757256236328,1.0287056,871.48,870.91,0.458]
[1757256237330,1.0287056,871.54,870.91,0.458]
[1757256238430,1.0287056,871.53,870.91,0.458]
[1757256239326,1.0287056,871.52,870.91,0.458]
[1757256239828,1.0287056,871.53,870.91,0.458]
[1757256241134,1.0287056,871.52,870.91,0.458]
[1757256241332,1.0287056,871.51,870.91,0.458]
[1757256241830,1.0287056,871.48,870.91,0.458]
[1757256243127,1.0287056,871.47,870.91,0.458]
[1757256245333,1.0287056,871.46,870.91,0.458]
[1757256246129,1.0287056,871.47,870.91,0.458]
[1757256246333,1.0287056,871.46,870.91,0.458]
[1757256252536,1.0287056,871.48,870.91,0.458]
[1757256255346,1.0287056,871.48,870.89,0.668]
[1757256256151,1.0287056,871.55,870.89,0.668]
[1757256256652,1.0287056,871.54,870.89,0.668]
[1757256257954,1.0287056,871.52,870.89,0.668]
[1757256259050,1.0287056,871.52,870.9,0.412]
[1757256261549,1.0287056,871.51,870.9,0.412]
[1757256262354,0.88014392,871.46,870.9,0.412]
[1757256264457,1.5430149,871.74,870.9,0.412]
[1757256264653,1.5430149,871.87,870.9,0.412]
[1757256264957,1.34770504,872.43,870.9,0.412]
[1757256265252,0.004,872.5,870.91,0.608]
[1757256267757,0.004,872.5,870.92,0.432]
[1757256267961,0.004,872.5,870.94,0.19914391]
[1757256269258,0.004,872.5,870.92,0.432]
[1757256269463,0.004,872.5,871.09,0.19919806]
[1757256285270,1.5367361,872.0,871.09,0.19919806]
[1757256286369,1.5367361,871.98,871.09,0.19919806]
[1757256287269,1.5367361,871.96,871.09,0.19919806]
[1757256287965,1.5367361,871.99,871.09,0.19919806]
[1757256290270,1.5367361,871.97,871.09,0.19919806]
[1757256290870,1.5367361,871.96,871.09,0.19919806]
[1757256291570,1.5367361,871.97,871.09,0.19919806]
[1757256292472,1.0245691,871.8,871.09,0.19919806]
[1757256293169,1.0245691,871.78,871.09,0.19919806]
[1757256293475,1.0245691,871.77,871.09,0.19919806]
[1757256295474,1.0245691,871.77,871.1,0.632]
[1757256295974,1.0245691,871.78,871.1,0.632]
[1757256296175,1.0245691,871.8,871.1,0.632]
[1757256297069,1.0245691,871.81,871.1,0.632]
[1757256297374,1.0245691,871.91,871.1,0.632]
[1757256298675,1.0245691,871.92,871.1,0.632]
[1757256301577,1.0245691,871.91,871.1,0.632]
[1757256302276,1.5367361,872.11,871.1,0.632]
[1757256302277,1.0245691,871.9,871.1,0.632]
[1757256302775,1.0245691,871.9,871.11,0.554]
[1757256303279,1.0245691,871.91,871.11,0.554]
[1757256303574,1.0245691,871.9,871.11,0.554]
[1757256304079,1.0245691,871.89,871.11,0.554]
[1757256305278,1.0245691,871.88,871.11,0.554]
[1757256305778,1.0245691,871.89,871.11,0.554]
[1757256306180,1.0245691,871.96,871.11,0.554]
[1757256306475,1.0245691,872.0,871.11,0.554]
[1757256307379,1.0245691,871.96,871.11,0.554]
[1757256308681,1.0245691,871.95,871.11,0.554]
[1757256310281,1.0245691,872.13,871.11,0.554]
[1757256310677,1.0245691,872.15,871.11,0.554]
[1757256310876,1.0245691,872.17,871.11,0.554]
[1757256311777,1.0245691,872.16,871.11,0.554]
[1757256315580,1.0245691,872.13,871.11,0.554]
[1757256316180,0.004,872.5,871.11,0.554]
[1757256316181,1.0245691,872.06,871.11,0.554]
[1757256316378,1.5367361,872.3,871.11,0.554]
[1757256316379,1.0245691,872.05,871.11,0.554]
[1757256316578,1.0245691,872.06,871.11,0.554]
[1757256316779,1.0245691,872.0,871.11,0.554]
[1757256317277,1.0245691,871.99,871.11,0.554]
[1757256317782,1.0245691,872.0,871.11,0.554]
[1757256318280,1.0245691,871.99,871.11,0.554]
[1757256318583,1.0245691,871.97,871.11,0.554]
[1757256319280,1.0245691,871.96,871.11,0.554]
[1757256319581,1.0245691,871.97,871.11,0.554]
[1757256319781,1.0245691,871.97,871.1,0.632]
[1757256320484,1.0245691,871.96,871.1,0.632]
[1757256321385,1.0245691,871.95,871.1,0.632]
[1757256321888,1.0245691,871.94,871.1,0.632]
[1757256322287,1.0245691,871.93,871.1,0.632]
[1757256322484,1.0245691,871.97,871.11,0.549]
[1757256323186,1.0245691,871.98,871.11,0.549]
[1757256323385,1.0245691,871.97,871.12,0.628]
[1757256324386,1.0245691,871.95,871.12,0.628]
[1757256326193,1.0245691,871.96,871.12,0.628]
[1757256326690,1.0245691,871.95,871.13,0.507]
[1757256327790,1.0245691,871.92,871.13,0.507]
[1757256329493,1.0245691,871.91,871.13,0.507]
[1757256332292,1.0245691,871.86,871.13,0.507]
[1757256332992,1.0245691,871.84,871.13,0.507]
[1757256333196,1.0245691,871.83,871.13,0.507]
[1757256334698,0.85205787,871.83,871.13,0.507]
[1757256335598,1.5367361,872.15,871.13,0.507]
[1757256336393,1.5367361,872.16,871.13,0.507]
[1757256337500,1.5367361,872.2,871.13,0.507]
[1757256337700,1.5367361,872.19,871.13,0.507]
[1757256337897,1.5367361,872.24,871.13,0.507]
[1757256338697,1.5367361,872.26,871.13,0.507]
[1757256342103,1.5367361,872.18,871.13,0.507]
[1757256342504,1.5367361,872.22,871.13,0.507]
[1757256344307,1.5367361,872.45,871.13,0.507]
[1757256344506,1.5367361,872.49,871.13,0.507]
[1757256344907,1.5367361,872.47,871.13,0.507]
[1757256346013,1.5367361,872.46,871.13,0.507]
[1757256346213,0.004,872.5,871.13,0.507]
[1757256351617,1.5407361,872.5,871.13,0.507]
[1757256354220,1.5367361,872.28,871.13,0.507]
[1757256354817,1.5367361,872.27,871.13,0.507]
[1757256355222,1.5367361,872.19,871.13,0.507]
[1757256356023,1.5367361,872.15,871.13,0.507]
[1757256356224,1.5367361,872.12,871.13,0.507]
[1757256356624,1.5367361,872.33,871.13,0.507]
[1757256359524,1.5367361,872.32,871.13,0.507]
[1757256362328,1.5367361,872.31,871.13,0.507]
[1757256362829,1.5367361,872.33,871.13,0.507]
[1757256363225,1.5367361,872.32,871.13,0.507]
[1757256364832,1.0275572,872.07,871.13,0.507]
[1757256365934,1.0275572,872.07,871.14,0.51]
[1757256366235,1.0275572,872.06,871.14,0.51]
[1757256366431,1.0275572,872.07,871.14,0.51]
[1757256366634,1.0275572,872.02,871.14,0.51]
[1757256366834,1.0275572,872.03,871.14,0.51]
[1757256367529,1.0275572,872.07,871.14,0.51]
[1757256368436,1.0275572,872.06,871.14,0.51]
[1757256369132,1.0275572,871.97,871.14,0.51]
[1757256369333,1.0275572,871.86,871.14,0.51]
[1757256369836,1.0275572,871.91,871.14,0.51]
[1757256371337,1.0275572,871.92,871.14,0.51]
[1757256373333,1.0275572,871.93,871.14,0.51]
[1757256373838,1.0275572,871.95,871.14,0.51]
[1757256375238,1.0275572,871.96,871.14,0.51]
[1757256375640,1.0275572,871.95,871.14,0.51]
[1757256376540,1.0275572,871.98,871.14,0.51]
[1757256378245,1.0275572,871.97,871.14,0.51]
[1757256378943,1.0275572,871.95,871.14,0.51]
[1757256379141,1.0275572,871.94,871.14,0.51]
[1757256379439,1.0275572,871.93,871.14,0.51]
[1757256379844,1.0275572,871.87,871.14,0.51]
[1757256380341,1.0275572,871.87,871.15,0.622]
[1757256382249,1.0275572,871.87,871.16,0.544]
[1757256382446,1.0275572,871.86,871.16,0.544]
[1757256382646,1.0275572,871.81,871.16,0.544]
[1757256382947,1.0275572,871.79,871.16,0.544]
[1757256383145,1.0275572,871.7,871.16,0.544]
[1757256383344,1.0275572,871.71,871.16,0.544]
[1757256384448,1.0275572,871.72,871.16,0.544]
[1757256385453,1.0275572,871.73,871.16,0.544]
[1757256386249,1.0275572,871.72,871.16,0.544]
[1757256386450,1.0275572,871.73,871.16,0.544]
[1757256388046,1.0275572,871.86,871.16,0.544]
[1757256388249,1.0275572,871.78,871.16,0.544]
[1757256388449,1.0275572,871.79,871.16,0.544]
[1757256389352,1.0275572,871.8,871.16,0.544]
[1757256390249,1.0275572,871.81,871.16,0.544]
[1757256391554,1.0275572,871.82,871.16,0.544]
[1757256392457,1.0275572,871.75,871.16,0.544]
[1757256392656,0.63553602,871.74,871.16,0.544]
[1757256392957,0.63553602,871.73,871.16,0.544]
[1757256393156,0.63553602,871.72,871.16,0.544]
[1757256393455,0.63553602,871.71,871.16,0.544]
[1757256393660,0.63553602,871.7,871.16,0.544]
[1757256393956,0.63553602,871.69,871.16,0.544]
[1757256394162,1.0275572,871.63,871.16,0.544]
[1757256394357,0.63553602,871.62,871.16,0.544]
[1757256394561,0.63553602,871.61,871.16,0.544]
[1757256394861,0.63553602,871.6,871.16,0.544]
[1757256395059,1.0275572,871.64,871.16,0.544]
[1757256395060,0.63553602,871.59,871.16,0.544]
[1757256395258,0.63553602,871.58,871.16,0.544]
[1757256395461,0.63553602,871.57,871.16,0.544]
[1757256395661,0.63553602,871.56,871.16,0.544]
[1757256395861,0.63553602,871.55,871.16,0.544]
[1757256396060,0.63553602,871.54,871.16,0.544]
[1757256396356,0.63553602,871.53,871.16,0.544]
[1757256396561,0.63553602,871.52,871.16,0.544]
[1757256396856,0.63553602,871.51,871.16,0.544]
[1757256397056,0.63553602,871.5,871.16,0.544]
[1757256397260,0.63553602,871.49,871.16,0.544]
[1757256397457,0.63553602,871.48,871.16,0.544]
[1757256397661,0.63553602,871.47,871.16,0.544]
[1757256397862,0.63553602,871.46,871.16,0.544]
[1757256398063,0.63553602,871.45,871.16,0.544]
[1757256398264,0.63553602,871.44,871.16,0.544]
[1757256398461,1.5367361,871.85,871.16,0.544]
[1757256398462,0.63553602,871.43,871.16,0.544]
[1757256398659,0.63553602,871.42,871.16,0.544]
[1757256398859,1.0275572,871.63,871.16,0.544]
[1757256399064,0.634832,871.62,871.16,0.544]
[1757256399358,0.634832,871.61,871.16,0.544]
[1757256399559,0.634832,871.6,871.16,0.544]
[1757256399765,0.634832,871.59,871.16,0.544]
[1757256399964,0.634832,871.58,871.16,0.544]
[1757256400163,0.634832,871.57,871.16,0.544]
[1757256400362,0.634832,871.56,871.16,0.544]
[1757256400566,0.634832,871.55,871.16,0.544]
[1757256400862,0.634832,871.54,871.16,0.544]
[1757256401066,0.634832,871.53,871.16,0.544]
[1757256401267,0.634832,871.52,871.16,0.544]
[1757256401562,0.634832,871.51,871.16,0.544]
[1757256401762,0.634832,871.5,871.16,0.544]
[1757256401968,0.634832,871.49,871.16,0.544]
[1757256402166,0.634832,871.48,871.16,0.544]
[1757256402466,0.634832,871.47,871.16,0.544]
[1757256402664,0.634832,871.46,871.16,0.544]
[1757256402867,0.634832,871.45,871.16,0.544]
[1757256403067,0.634832,871.44,871.16,0.544]
[1757256403264,0.634832,871.43,871.16,0.544]
[1757256403567,0.634832,871.42,871.16,0.544]
[1757256403767,1.0275572,871.67,871.16,0.544]
[1757256403968,0.63430861,871.66,871.16,0.544]
[1757256404164,0.63430861,871.65,871.16,0.544]
[1757256404468,0.63430861,871.64,871.16,0.544]
[1757256404668,0.63430861,871.63,871.16,0.544]
[1757256404866,0.63430861,871.62,871.16,0.544]
[1757256405165,0.63430861,871.61,871.16,0.544]
[1757256405369,0.63430861,871.6,871.16,0.544]
[1757256405566,0.63430861,871.59,871.16,0.544]
[1757256405765,0.63430861,871.58,871.16,0.544]
[1757256405966,0.63430861,871.57,871.16,0.544]
[1757256406169,0.63430861,871.56,871.16,0.544]
[1757256406370,0.63430861,871.55,871.16,0.544]
[1757256406564,0.63430861,871.54,871.16,0.544]
[1757256406767,0.63430861,871.53,871.16,0.544]
[1757256407070,0.63430861,871.52,871.16,0.544]
[1757256407266,0.63430861,871.51,871.16,0.544]
[1757256407471,0.63430861,871.5,871.16,0.544]
[1757256407771,0.63430861,871.49,871.16,0.544]